fUST/lending_fUST_20250217
["ID","MTS","AMOUNT","RATE_DAILY","PERIOD"]
[353316485,1739757032486,-2390.679397,0.00014,2]
[353316486,1739757032495,-1659.38015095,0.00014,2]
[353316487,1739757032507,-731.29924605,0.00014,2]
[353316488,1739757032516,-150.16689291,0.00014,2]
[353316492,1739757037831,-636.322585,0.00012247,2]
[353316493,1739757037842,-2783.6508583,0.00012247,2]
[353316494,1739757037852,-356.823865,0.00013699,2]
[353316495,1739757037861,-0.83310709,0.00014,2]
[353316496,1739757037870,-624.21153342,0.00014159,2]
[353316497,1739757037879,-292.0,0.00014287,2]
[353316498,1739757037889,-323.99451286,0.00014334,2]
[353316499,1739757038038,-106.31681042,0.00014334,2]
[353316500,1739757038048,-320.0,0.0001452,2]
[353316501,1739757038057,-151.0,0.0001452,2]
[353316502,1739757038066,-151.0,0.0001452,2]
[353316503,1739757038075,-161.4750545,0.0001475,2]
[353316504,1739757038085,-111.94289143,0.00014821,2]
[353316511,1739757039912,-3419.9734433,0.00012124,2]
[353316512,1739757039923,-4262.98,0.00014821,2]
[353316513,1739757039934,-41.33371717,0.00014821,2]
[353316514,1739757039944,-153.0,0.00014821,2]
[353316515,1739757039954,-153.0,0.00014821,2]
[353316516,1739757039963,-153.0,0.00014821,2]
[353316517,1739757039973,-152.0,0.00014836,2]
[353316518,1739757039985,-472.96057667,0.00014867,2]
[353316519,1739757039995,-9595.86790545,0.0001487,2]
[353316520,1739757040005,-891.668011,0.0001487,2]
[353316521,1739757040014,-891.668011,0.0001487,2]
[353316522,1739757040024,-151.0,0.0001487,2]
[353316523,1739757040033,-151.0,0.0001487,2]
[353316524,1739757040043,-3000.0,0.0001487,2]
[353316525,1739757040053,-500.0,0.00014873,2]
[353316526,1739757040062,-500.0,0.00014873,2]
[353316527,1739757040072,-501.18039987,0.00014873,2]
[353316528,1739757040081,-349.57677234,0.00014873,2]
[353316529,1739757040093,-202.3199595,0.00014873,2]
[353316530,1739757040103,-500.0,0.00014873,2]
[353316531,1739757040112,-3800.36807084,0.00014878,2]
[353316532,1739757040121,-151.0,0.0001488,2]
[353316533,1739757040131,-891.668011,0.0001488,2]
[353316534,1739757040141,-891.668011,0.0001488,2]
[353316535,1739757040151,-5436.689774,0.0001488,2]
[353316536,1739757040160,-5436.689774,0.0001488,2]
[353316537,1739757040172,-151.0,0.0001488,2]
[353316538,1739757040183,-151.0,0.0001488,2]
[353316539,1739757040192,-3800.36807084,0.0001488,2]
[353316540,1739757040201,-891.668011,0.00014888,2]
[353316541,1739757040210,-891.668011,0.00014888,2]
[353316542,1739757040220,-500.0,0.00014888,2]
[353316543,1739757040229,-500.0,0.00014888,2]
[353316544,1739757040239,-500.0,0.00014888,2]
[353316545,1739757040248,-500.0,0.00014888,2]
[353316546,1739757040257,-500.0,0.00014888,2]
[353316547,1739757040266,-500.0,0.00014888,2]
[353316548,1739757040275,-500.0,0.00014888,2]
[353316549,1739757040284,-500.0,0.00014888,2]
[353316550,1739757040293,-500.0,0.00014888,2]
[353316551,1739757040303,-500.0,0.00014888,2]
[353316552,1739757040312,-500.0,0.00014888,2]
[353316553,1739757040321,-500.0,0.00014888,2]
[353316554,1739757040331,-500.0,0.00014888,2]
[353316555,1739757040340,-500.0,0.00014888,2]
[353316556,1739757040350,-500.0,0.00014888,2]
[353316557,1739757040359,-500.0,0.00014888,2]
[353316558,1739757040369,-500.0,0.00014888,2]
[353316559,1739757040378,-152.89227593,0.00014888,2]
[353316560,1739757040388,-500.0,0.00014888,2]
[353316561,1739757040397,-500.0,0.00014888,2]
[353316562,1739757040406,-500.0,0.00014888,2]
[353316563,1739757040416,-500.0,0.00014888,2]
[353316564,1739757040425,-500.0,0.00014888,2]
[353316565,1739757040434,-500.0,0.00014888,2]
[353316566,1739757040443,-500.0,0.00014888,2]
[353316567,1739757040453,-500.0,0.00014888,2]
[353316568,1739757040462,-500.0,0.00014888,2]
[353316569,1739757040471,-255.34525883,0.00014888,2]
[353316570,1739757040480,-3800.36807084,0.00014889,2]
[353316571,1739757040490,-153.565424,0.00014889,2]
[353316572,1739757040499,-5436.689774,0.00014889,2]
[353316573,1739757040508,-1350.11051774,0.00014889,2]
[353316574,1739757040639,-501.98011922,0.00014889,2]
[353316605,1739757042882,-3584.59913704,0.00014889,2]
[353316607,1739757042892,-151.0,0.00014889,2]
[353316608,1739757042902,-151.0,0.00014889,2]
[353316610,1739757042912,-151.0,0.00014889,2]
[353316611,1739757042922,-151.0,0.00014889,2]
[353316613,1739757042931,-10323.35739727,0.0001489,5]
[353316614,1739757042941,-151.0,0.0001489,2]
[353316615,1739757042952,-151.0,0.0001489,2]
[353316616,1739757042962,-2567.409625,0.0001489,2]
[353316617,1739757042972,-2567.409625,0.0001489,2]
[353316618,1739757042982,-154.015047,0.0001489,2]
[353316619,1739757042991,-154.015047,0.0001489,2]
[353316620,1739757043001,-668.245612,0.0001489,2]
[353316621,1739757043011,-668.245612,0.0001489,2]
[353316622,1739757043020,-517.8996,0.0001489,2]
[353316623,1739757043030,-517.8996,0.0001489,2]
[353316624,1739757043039,-161.799106,0.0001489,2]
[353316625,1739757043049,-161.799106,0.0001489,2]
[353316626,1739757043059,-962.56934,0.0001489,2]
[353316627,1739757043068,-962.56934,0.0001489,2]
[353316628,1739757043078,-151.0,0.0001489,2]
[353316629,1739757043088,-2390.679397,0.0001489,2]
[353316630,1739757043102,-7600.73614168,0.0001489,2]
[353316631,1739757043112,-151.0,0.0001489,2]
[353316632,1739757043123,-240.26235318,0.0001489,2]
[353316633,1739757043135,-2150.41704382,0.0001489,2]
[353316634,1739757043146,-151.0,0.0001489,2]
[353316635,1739757043156,-891.668011,0.0001489,2]
[353316636,1739757043166,-891.668011,0.0001489,2]
[353316637,1739757043176,-891.668011,0.0001489,2]
[353316638,1739757043186,-891.668011,0.0001489,2]
[353316639,1739757043196,-5436.689774,0.0001489,2]
[353316640,1739757043206,-891.668011,0.0001489,2]
[353316641,1739757043215,-5436.689774,0.0001489,2]
[353316642,1739757043225,-891.668011,0.0001489,2]
[353316643,1739757043235,-5436.689774,0.0001489,2]
[353316644,1739757043245,-425.336199,0.0001489,2]
[353316645,1739757043255,-5436.689774,0.0001489,2]
[353316646,1739757043264,-5436.689774,0.0001489,2]
[353316647,1739757043274,-2630.67175619,0.0001489,2]
[353316653,1739757045966,-1843.38000486,0.0001489,2]
[353316671,1739757958113,-250.73118857,0.00010578,2]
[353316672,1739758027086,-149.26881143,0.00010578,2]
[353316673,1739758027108,-400.0,0.00010685,2]
[353316674,1739758027129,-250.0,0.00012509,2]
[353316675,1739758027151,-1391.7399978,0.000131,2]
[353316676,1739758027172,-7274.0744855,0.00013344,2]
[353316677,1739758027193,-300.0,0.00013412,2]
[353316678,1739758027213,-150.605,0.00013414,2]
[353316679,1739758027234,-851.509,0.00013414,2]
[353316680,1739758027255,-471.59953153,0.00013414,2]
[353316681,1739758042115,-2238.50146847,0.00013279,2]
[353316682,1739758042137,-1823.84446847,0.00013414,2]
[353316683,1739758042160,-414.657,0.00013414,2]
[353316684,1739758042181,-152.0,0.00013575,2]
[353316685,1739758042202,-153.77632995,0.0001358,4]
[353316686,1739758042224,-268.94457705,0.00013599,2]
[353316687,1739758042245,-300.0,0.000136,4]
[353316688,1739758042265,-225.631506,0.00013699,2]
[353316689,1739758042299,-372.0,0.00013699,2]
[353316690,1739758042323,-372.0,0.00013699,2]
[353316691,1739758042345,-372.0,0.00013699,2]
[353316692,1739758042367,-452.0,0.00013699,2]
[353316693,1739758042390,-200.14859058,0.00013699,2]
[353316694,1739758045126,-251.85140942,0.00013699,2]
[353316695,1739758045148,-452.0,0.00013699,2]
[353316696,1739758045168,-500.0,0.00013699,2]
[353316697,1739758045188,-372.0,0.00013699,2]
[353316698,1739758045209,-372.0,0.00013699,2]
[353316699,1739758045230,-372.0,0.00013699,2]
[353316700,1739758045250,-372.0,0.00013699,2]
[353316701,1739758045269,-372.0,0.00013699,2]
[353316702,1739758045290,-372.0,0.00013699,2]
[353316703,1739758045311,-372.0,0.00013699,2]
[353316704,1739758045331,-372.0,0.00013699,2]
[353316705,1739758045352,-372.0,0.00013699,2]
[353316706,1739758045372,-372.0,0.00013699,2]
[353316707,1739758045393,-372.0,0.00013699,2]
[353316708,1739758045417,-372.0,0.00013699,2]
[353316709,1739758045438,-372.0,0.00013699,2]
[353316710,1739758045458,-372.0,0.00013699,2]
[353316711,1739758045479,-452.0,0.00013699,2]
[353316712,1739758045500,-452.0,0.00013699,2]
[353316713,1739758045520,-452.0,0.00013699,2]
[353316714,1739758045540,-452.0,0.00013699,2]
[353316715,1739758045567,-452.0,0.00013699,2]
[353316716,1739758045754,-452.0,0.00013699,2]
[353316717,1739758045776,-452.0,0.00013699,2]
[353316718,1739758045798,-452.0,0.00013699,2]
[353316719,1739758045819,-452.0,0.00013699,2]
[353316720,1739758045838,-452.0,0.00013699,2]
[353316721,1739758045860,-452.0,0.00013699,2]
[353316722,1739758045882,-452.0,0.00013699,2]
[353316723,1739758045903,-452.0,0.00013699,2]
[353316724,1739758045923,-452.0,0.00013699,2]
[353316725,1739758045945,-372.0,0.00013699,2]
[353316726,1739758045966,-372.0,0.00013699,2]
[353316727,1739758045987,-372.0,0.00013699,2]
[353316728,1739758046008,-372.0,0.00013699,2]
[353316729,1739758046029,-372.0,0.00013699,2]
[353316730,1739758046049,-372.0,0.00013699,2]
[353316731,1739758046070,-372.0,0.00013699,2]
[353316732,1739758046092,-372.0,0.00013699,2]
[353316733,1739758046113,-372.0,0.00013699,2]
[353316734,1739758046134,-372.0,0.00013699,2]
[353316735,1739758046154,-372.0,0.00013699,2]
[353316736,1739758046175,-372.0,0.00013699,2]
[353316737,1739758046194,-372.0,0.00013699,2]
[353316738,1739758046215,-372.0,0.00013699,2]
[353316739,1739758046235,-452.0,0.00013699,2]
[353316740,1739758046255,-452.0,0.00013699,2]
[353316741,1739758046277,-452.0,0.00013699,2]
[353316742,1739758046300,-452.0,0.00013699,2]
[353316743,1739758046320,-452.0,0.00013699,2]
[353316744,1739758046340,-452.0,0.00013699,2]
[353316745,1739758046361,-452.0,0.00013699,2]
[353316746,1739758046382,-452.0,0.00013699,2]
[353316747,1739758046402,-452.0,0.00013699,2]
[353316748,1739758046430,-452.0,0.00013699,2]
[353316749,1739758046451,-452.0,0.00013699,2]
[353316750,1739758046472,-452.0,0.00013699,2]
[353316751,1739758046493,-452.0,0.00013699,2]
[353316752,1739758046514,-452.0,0.00013699,2]
[353316753,1739758046533,-182.517,0.00013699,2]
[353316754,1739758046554,-500.0,0.000137,2]
[353316755,1739758046576,-500.0,0.000137,2]
[353316756,1739758046597,-501.30219195,0.000137,2]
[353316757,1739758046622,-331.88,0.000137,2]
[353316758,1739758046643,-190.76057223,0.000137,2]
[353316759,1739758046664,-500.88910816,0.000137,2]
[353316760,1739758046686,-1687.0,0.000139,2]
[353316761,1739758046706,-500.0,0.00013973,2]
[353316762,1739758046727,-194.0,0.00013981,2]
[353316763,1739758046748,-361.8870903,0.00014078,2]
[353316764,1739758046770,-306.0,0.00014078,2]
[353316765,1739758046792,-306.4000604,0.00014078,2]
[353316766,1739758046812,-200.49890528,0.00014198,2]
[353316767,1739758046833,-268.94457705,0.00014213,2]
[353316768,1739758046855,-500.0,0.00014247,2]
[353316769,1739758046876,-1000.0,0.00014248,2]
[353316770,1739758046897,-151.0,0.00014274,2]
[353316771,1739758046918,-709.9009545,0.000143,2]
[353316772,1739758046939,-153.0,0.00014352,2]
[353316773,1739758046960,-309.2643987,0.00014352,2]
[353316774,1739758046981,-248.0,0.00014399,2]
[353316775,1739758047002,-25408.45662623,0.000145,4]
[353316776,1739758047041,-151.0,0.0001452,2]
[353316777,1739758047068,-151.02408,0.0001452,2]
[353316778,1739758047090,-500.0,0.00014521,2]
[353316779,1739758047113,-326.0,0.0001453,2]
[353316780,1739758047136,-354.4929817,0.000146,2]
[353316781,1739758047157,-7438.69753278,0.00014644,2]
[353316782,1739758047180,-300.0,0.00014703,2]
[353316783,1739758047202,-161.4750545,0.00014741,2]
[353316784,1739758047223,-500.0,0.00014795,2]
[353316785,1739758047246,-1326.53016685,0.000148,2]
[353316849,1739758237903,-5000.00654965,9.848e-05,2]
[353316850,1739758237913,-5000.00654965,9.948e-05,2]
[353316851,1739758237923,-7438.69753278,0.00013699,2]
[353316852,1739758237933,-254.0,0.00013699,2]
[353316853,1739758237943,-254.0,0.00013699,2]
[353316854,1739758237953,-254.0,0.00013699,2]
[353316855,1739758237963,-285.459092,0.00013699,2]
[353316856,1739758237972,-254.0,0.00013699,2]
[353316857,1739758237982,-254.0,0.00013699,2]
[353316858,1739758237991,-254.0,0.00013699,2]
[353316859,1739758238000,-254.0,0.00013699,2]
[353316860,1739758238010,-254.0,0.00013699,2]
[353316861,1739758238020,-254.0,0.00013699,2]
[353316862,1739758238029,-254.0,0.00013699,2]
[353316863,1739758238038,-254.0,0.00013699,2]
[353316864,1739758238048,-254.0,0.00013699,2]
[353316865,1739758238058,-254.0,0.00013699,2]
[353316866,1739758238068,-254.0,0.00013699,2]
[353316868,1739758238077,-254.0,0.00013699,2]
[353316869,1739758238086,-254.0,0.00013699,2]
[353316870,1739758238096,-254.0,0.00013699,2]
[353316871,1739758238105,-254.0,0.00013699,2]
[353316872,1739758238115,-254.0,0.00013699,2]
[353316873,1739758238125,-254.0,0.00013699,2]
[353316874,1739758238134,-254.0,0.00013699,2]
[353316875,1739758238144,-309.0,0.00013699,2]
[353316876,1739758238153,-309.0,0.00013699,2]
[353316877,1739758238163,-309.0,0.00013699,2]
[353316878,1739758238172,-309.0,0.00013699,2]
[353316879,1739758238182,-309.0,0.00013699,2]
[353316880,1739758238191,-309.0,0.00013699,2]
[353316881,1739758238200,-309.0,0.00013699,2]
[353316882,1739758238210,-309.0,0.00013699,2]
[353316883,1739758238219,-309.0,0.00013699,2]
[353316884,1739758238228,-309.0,0.00013699,2]
[353316885,1739758238238,-309.0,0.00013699,2]
[353316886,1739758238248,-309.0,0.00013699,2]
[353316887,1739758238257,-309.0,0.00013699,2]
[353316888,1739758238268,-309.0,0.00013699,2]
[353316889,1739758238277,-309.0,0.00013699,2]
[353316890,1739758238287,-309.0,0.00013699,2]
[353316891,1739758238296,-309.0,0.00013699,2]
[353316892,1739758238306,-309.0,0.00013699,2]
[353316893,1739758238315,-309.0,0.00013699,2]
[353316894,1739758238325,-309.0,0.00013699,2]
[353316895,1739758238335,-309.0,0.00013699,2]
[353316896,1739758238344,-254.0,0.00013699,2]
[353316897,1739758238354,-254.0,0.00013699,2]
[353316898,1739758238363,-254.0,0.00013699,2]
[353316899,1739758238373,-254.0,0.00013699,2]
[353316900,1739758238383,-254.0,0.00013699,2]
[353316901,1739758238393,-254.0,0.00013699,2]
[353316902,1739758238402,-254.0,0.00013699,2]
[353316903,1739758238411,-254.0,0.00013699,2]
[353316904,1739758238421,-254.0,0.00013699,2]
[353316905,1739758238430,-254.0,0.00013699,2]
[353316906,1739758238440,-254.0,0.00013699,2]
[353316907,1739758238450,-254.0,0.00013699,2]
[353316908,1739758238459,-254.0,0.00013699,2]
[353316909,1739758238471,-500.0,0.00013699,2]
[353316910,1739758238480,-309.0,0.00013699,2]
[353316911,1739758238490,-309.0,0.00013699,2]
[353316912,1739758238499,-309.0,0.00013699,2]
[353316913,1739758238509,-309.0,0.00013699,2]
[353316914,1739758238519,-309.0,0.00013699,2]
[353316915,1739758238529,-309.0,0.00013699,2]
[353316916,1739758238539,-309.0,0.00013699,2]
[353316917,1739758238549,-309.0,0.00013699,2]
[353316918,1739758238560,-309.0,0.00013699,2]
[353316919,1739758238569,-309.0,0.00013699,2]
[353316920,1739758238579,-309.0,0.00013699,2]
[353316921,1739758238588,-309.0,0.00013699,2]
[353316922,1739758238598,-309.0,0.00013699,2]
[353316923,1739758238607,-254.0,0.00013699,2]
[353316924,1739758238616,-254.0,0.00013699,2]
[353316925,1739758238626,-254.0,0.00013699,2]
[353316926,1739758238635,-254.0,0.00013699,2]
[353316927,1739758238645,-254.0,0.00013699,2]
[353316928,1739758238655,-254.0,0.00013699,2]
[353316929,1739758238664,-254.0,0.00013699,2]
[353316930,1739758238674,-254.0,0.00013699,2]
[353316931,1739758238683,-254.0,0.00013699,2]
[353316932,1739758238692,-254.0,0.00013699,2]
[353316933,1739758238701,-254.0,0.00013699,2]
[353316934,1739758238710,-254.0,0.00013699,2]
[353316935,1739758238720,-254.0,0.00013699,2]
[353316936,1739758238731,-254.0,0.00013699,2]
[353316937,1739758238740,-254.0,0.00013699,2]
[353316938,1739758238750,-254.0,0.00013699,2]
[353316939,1739758238760,-309.0,0.00013699,2]
[353316940,1739758238770,-309.0,0.00013699,2]
[353316941,1739758238779,-309.0,0.00013699,2]
[353316942,1739758238789,-309.0,0.00013699,2]
[353316943,1739758238798,-69.95250059,0.00013699,2]
[353316944,1739758238812,-239.04749941,0.00013699,2]
[353316945,1739758238821,-33.05587308,0.00013699,2]
[353316959,1739758239714,-275.94412692,0.00013699,2]
[353316961,1739758239723,-309.0,0.00013699,2]
[353316963,1739758239733,-309.0,0.00013699,2]
[353316965,1739758239742,-309.0,0.00013699,2]
[353316967,1739758239752,-309.0,0.00013699,2]
[353316969,1739758239761,-309.0,0.00013699,2]
[353316971,1739758239771,-309.0,0.00013699,2]
[353316973,1739758239780,-309.0,0.00013699,2]
[353316975,1739758239789,-309.0,0.00013699,2]
[353316977,1739758239798,-309.0,0.00013699,2]
[353316979,1739758239807,-309.0,0.00013699,2]
[353316981,1739758239816,-500.0,0.000137,2]
[353316983,1739758239826,-298.69,0.000137,2]
[353316985,1739758239835,-500.57312837,0.000137,2]
[353316987,1739758239845,-500.0,0.000137,2]
[353316989,1739758239856,-500.0,0.00013973,2]
[353316991,1739758239865,-500.0,0.00014247,2]
[353316993,1739758239875,-1000.0,0.00014248,2]
[353316995,1739758239885,-1000.0,0.00014248,2]
[353316997,1739758239895,-500.0,0.00014521,2]
[353316998,1739758239905,-152.0,0.00014606,2]
[353317000,1739758239914,-201.70843284,0.000147,2]
[353317002,1739758239923,-161.4750546,0.00014741,2]
[353317004,1739758239933,-500.0,0.00014795,2]
[353317006,1739758239942,-1673.46983315,0.000148,2]
[353317008,1739758239952,-3000.0,0.000148,2]
[353317010,1739758239961,-151.0,0.000148,2]
[353317012,1739758239971,-151.0,0.000148,2]
[353317014,1739758239980,-151.0,0.000148,2]
[353317016,1739758239989,-292.284163,0.000148,2]
[353317018,1739758239998,-292.284163,0.000148,2]
[353317020,1739758240007,-72.79488807,0.000148,2]
[353317029,1739758240082,-90.31066589,0.000148,2]
[353317031,1739758240091,-163.10555396,0.000148,2]
[353317033,1739758240101,-163.10555396,0.000148,2]
[353317035,1739758240110,-163.10555396,0.000148,2]
[353317037,1739758240119,-163.1,0.000148,2]
[353317039,1739758240128,-151.0,0.000148,2]
[353317041,1739758240138,-8636.28111495,0.00014869,2]
[353317043,1739758240147,-151.0,0.0001487,2]
[353317045,1739758240157,-151.0,0.0001487,2]
[353317047,1739758240166,-500.0,0.00014873,2]
[353317049,1739758240175,-500.0,0.00014873,2]
[353317051,1739758240185,-605.50042236,0.00014873,2]
[353317053,1739758240194,-500.0,0.00014873,2]
[353317055,1739758240203,-500.0,0.00014873,2]
[353317057,1739758240213,-500.0,0.00014873,2]
[353317059,1739758240223,-500.0,0.00014873,2]
[353317061,1739758240232,-500.0,0.00014873,2]
[353317063,1739758240242,-292.284163,0.00014878,2]
[353317065,1739758240252,-292.284163,0.00014878,2]
[353317067,1739758240261,-2850.27605312,0.00014879,2]
[353317069,1739758240271,-2222.807811,0.00014879,2]
[353317071,1739758240280,-2222.807811,0.00014879,2]
[353317073,1739758240289,-151.0,0.00014879,2]
[353317075,1739758240298,-151.0,0.00014879,2]
[353317077,1739758240307,-151.0,0.00014879,2]
[353317080,1739758240316,-151.0,0.00014879,2]
[353317082,1739758240325,-151.0,0.00014879,2]
[353317084,1739758240335,-151.0,0.00014879,2]
[353317085,1739758240344,-770.055472,0.00014879,2]
[353317086,1739758240353,-770.055472,0.00014879,2]
[353317087,1739758240363,-151.0,0.0001488,2]
[353317088,1739758240372,-151.0,0.0001488,2]
[353317089,1739758240382,-151.0,0.0001488,2]
[353317090,1739758240391,-151.0,0.0001488,2]
[353317091,1739758240400,-151.0,0.0001488,2]
[353317092,1739758240409,-151.0,0.0001488,2]
[353317093,1739758240418,-292.284163,0.0001488,2]
[353317094,1739758240428,-292.284163,0.0001488,2]
[353317095,1739758240436,-17101.6563187,0.0001488,2]
[353317096,1739758240446,-2850.27605312,0.00014889,2]
[353317097,1739758240455,-151.0,0.00014889,2]
[353317098,1739758240465,-151.0,0.00014889,2]
[353317099,1739758240477,-151.0,0.00014889,2]
[353317100,1739758240487,-175.11931,0.00014889,2]
[353317101,1739758240496,-2222.807811,0.00014889,2]
[353317102,1739758240505,-2222.807811,0.00014889,2]
[353317103,1739758240515,-151.0,0.00014889,2]
[353317104,1739758240524,-151.0,0.00014889,2]
[353317105,1739758240533,-151.0,0.00014889,2]
[353317106,1739758240543,-151.0,0.00014889,2]
[353317108,1739758240552,-151.0,0.00014889,2]
[353317110,1739758240561,-151.726916,0.00014889,2]
[353317112,1739758240570,-770.055472,0.00014889,2]
[353317114,1739758240579,-770.055472,0.00014889,2]
[353317116,1739758240589,-506.20641466,0.00014889,2]
[353317118,1739758240598,-500.0,0.00014889,2]
[353317120,1739758240607,-500.0,0.00014889,2]
[353317122,1739758240616,-351.43340216,0.00014889,2]
[353317124,1739758240625,-500.0,0.00014889,2]
[353317126,1739758240634,-510.37368427,0.00014889,2]
[353317128,1739758240643,-500.0,0.00014889,2]
[353317130,1739758240652,-500.0,0.00014889,2]
[353317132,1739758240661,-500.0,0.00014889,2]
[353317134,1739758240670,-500.0,0.00014889,2]
[353317136,1739758240680,-500.0,0.00014889,2]
[353317138,1739758240690,-192.65446568,0.00014889,2]
[353317140,1739758240699,-500.0,0.00014889,2]
[353317142,1739758240708,-500.0,0.00014889,2]
[353317144,1739758240717,-500.0,0.00014889,2]
[353317146,1739758240726,-195.03836209,0.00014889,2]
[353317148,1739758240735,-410.17984548,0.00014889,2]
[353317150,1739758240744,-433.27660291,0.00014889,2]
[353317152,1739758240753,-500.0,0.00014889,2]
[353317154,1739758240762,-500.0,0.00014889,2]
[353317156,1739758240772,-500.0,0.00014889,2]
[353317158,1739758240781,-500.0,0.00014889,2]
[353317160,1739758240790,-500.0,0.00014889,2]
[353317162,1739758240799,-500.0,0.00014889,2]
[353317164,1739758240808,-500.0,0.00014889,2]
[353317166,1739758240817,-500.0,0.00014889,2]
[353317168,1739758240826,-500.0,0.00014889,2]
[353317170,1739758240835,-500.0,0.00014889,2]
[353317172,1739758240844,-500.0,0.00014889,2]
[353317173,1739758240852,-500.0,0.00014889,2]
[353317175,1739758240861,-500.0,0.00014889,2]
[353317177,1739758240870,-500.0,0.00014889,2]
[353317179,1739758240880,-500.0,0.00014889,2]
[353317181,1739758240889,-398.7607176,0.00014889,2]
[353317183,1739758240898,-500.0,0.00014889,2]
[353317186,1739758240907,-500.0,0.00014889,2]
[353317188,1739758240917,-500.0,0.00014889,2]
[353317190,1739758240927,-500.0,0.00014889,2]
[353317192,1739758240936,-500.0,0.00014889,2]
[353317194,1739758240946,-500.0,0.00014889,2]
[353317196,1739758240956,-500.0,0.00014889,2]
[353317198,1739758240967,-151.0,0.0001489,2]
[353317200,1739758240976,-151.643867,0.0001489,2]
[353317202,1739758240985,-1912.543518,0.0001489,2]
[353317204,1739758240994,-1912.543518,0.0001489,2]
[353317206,1739758241003,-151.0,0.0001489,2]
[353317209,1739758241021,-151.0,0.0001489,2]
[353317211,1739758241033,-151.0,0.0001489,2]
[353317213,1739758241043,-151.0,0.0001489,2]
[353317215,1739758241052,-151.0,0.0001489,2]
[353317217,1739758241065,-8550.82815936,0.0001489,2]
[353317219,1739758241074,-292.284163,0.0001489,2]
[353317221,1739758241084,-292.284163,0.0001489,2]
[353317223,1739758241093,-292.284163,0.0001489,2]
[353317225,1739758241103,-292.284163,0.0001489,2]
[353317227,1739758241112,-1000.0,0.0001489,7]
[353317229,1739758241122,-1000.0,0.0001489,7]
[353317231,1739758241132,-195.824318,0.0001489,7]
[353317233,1739758241141,-770.055472,0.0001489,2]
[353317236,1739758241151,-770.055472,0.0001489,2]
[353317238,1739758241161,-151.0,0.00014896,2]
[353317240,1739758241170,-500.0,0.00014896,2]
[353317242,1739758241179,-500.0,0.00014896,2]
[353317244,1739758241188,-500.0,0.00014896,2]
[353317246,1739758241199,-500.0,0.00014896,2]
[353317248,1739758241209,-500.0,0.00014896,2]
[353317250,1739758241218,-500.0,0.00014896,2]
[353317252,1739758241227,-500.0,0.00014896,2]
[353317254,1739758241237,-500.0,0.00014896,2]
[353317256,1739758241246,-500.617271,0.00014896,2]
[353317258,1739758241256,-151.0,0.00014896,2]
[353317260,1739758241266,-151.0,0.00014896,2]
[353317262,1739758241275,-151.0,0.00014896,2]
[353317264,1739758241284,-151.0,0.00014897,2]
[353317266,1739758241293,-151.0,0.00014897,2]
[353317268,1739758241303,-151.0,0.00014897,2]
[353317270,1739758241312,-601.421051,0.00014897,2]
[353317272,1739758241321,-601.421051,0.00014897,2]
[353317274,1739758241331,-151.0,0.00014898,2]
[353317276,1739758241340,-151.0,0.00014898,2]
[353317278,1739758241349,-414.31968,0.00014898,2]